bitfinex-derivatives/quotes_SOLF0:USTF0_20250109
["timestamp","ask_amount","ask_price","bid_price","bid_amount"]
[1736381937198,10.74904159,197.4,197.36,2.534]
[1736381938000,13.28264159,197.4,197.36,2.534]
[1736381939595,1.5726,197.49,197.35,2.86]
[1736381939798,7.88904159,197.44,197.38,7.88904159]
[1736381939998,2.5326,197.48,197.44,2.533]
[1736381940204,7.88904159,197.46,197.44,2.533]
[1736381940696,7.88904159,197.46,197.43,2.5331]
[1736381942095,10.42194159,197.46,197.4,13.28244159]
[1736381942307,7.88904159,197.46,197.4,2.5334]
[1736381942706,7.88904159,197.44,197.4,2.5334]
[1736381943603,7.88904159,197.42,197.33,192.5023]
[1736381943899,7.88904159,197.38,197.33,1.5023]
[1736381944105,7.88904159,197.38,197.33,2.5343]
[1736381944795,10.42284159,197.38,197.31,7.88904159]
[1736381944999,10.42284159,197.38,197.34,2.5343]
[1736381945608,7.88904159,197.38,197.34,2.5343]
[1736381946100,7.88904159,197.38,197.31,7.88904159]
[1736381946303,7.88904159,197.38,197.33,7.88904159]
[1736381948105,11.86535094,197.48,197.34,2.86]
[1736381948303,11.86535094,197.48,197.37,7.88904159]
[1736381948509,7.88904159,197.46,197.39,7.88904159]
[1736381948705,7.88904159,197.46,197.39,10.74904159]
[1736381949208,7.88904159,197.46,197.43,2.533]
[1736381951307,2.5327,197.47,197.43,2.533]
[1736381953508,8.4341,197.48,197.43,2.533]
[1736381955507,5.9016,197.48,197.44,2.5329]
[1736381955706,2.86,197.48,197.39,2.86]
[1736381956010,17.2177196,197.49,197.39,2.86]
[1736381956411,17.2177196,197.49,197.39,4.4559]
[1736381956715,4.89925344,197.49,197.39,4.4559]
[1736381957111,4.89925344,197.49,197.46,2.5326]
[1736381957412,4.89925344,197.49,197.39,4.4559]
[1736381957615,4.89925344,197.49,197.41,12.31846616]
[1736381957814,4.89925344,197.49,197.48,2.5325]
[1736381958112,12.31846616,197.55,197.44,2.86]
[1736381958308,7.5131,197.57,197.44,15.17846616]
[1736381958504,79.04,197.58,197.47,12.31846616]
[1736381958709,12.31846616,197.61,197.48,1.5655]
[1736381958911,12.31846616,197.61,197.56,2.5314]
[1736381959115,12.31846616,197.61,197.5,12.31846616]
[1736381959610,14.84926616,197.61,197.53,2.5318]
[1736381959812,14.84926616,197.61,197.5,12.31846616]
[1736381960012,12.31846616,197.61,197.5,12.31846616]
[1736381960611,2.5311,197.59,197.53,2.5318]
[1736381962210,2.5311,197.59,197.54,2.5317]
[1736381962416,12.31846616,197.61,197.5,12.31846616]
[1736381962613,14.84936616,197.61,197.5,12.31846616]
[1736381962810,12.31846616,197.61,197.5,12.31846616]
[1736381963306,2.86,197.63,197.5,12.31846616]
[1736381963909,12.31846616,197.64,197.53,12.31846616]
[1736381964115,3.1807,197.65,197.54,2.86]
[1736381964418,14.84856616,197.67,197.62,2.5306]
[1736381965224,2.5301,197.67,197.62,2.5306]
[1736381965612,2.5301,197.67,197.59,2.86]
[1736381965613,12.31846616,197.69,197.61,2.5308]
[1736381965822,2.5304,197.64,197.59,2.86]
[1736381966322,2.5307,197.62,197.57,2.5312]
[1736381967115,2.5306,197.63,197.57,2.5312]
[1736381967315,12.31846616,197.62,197.51,50.81079263]
[1736381967518,12.31846616,197.59,197.51,50.81079263]
[1736381967718,2.86,197.58,197.51,50.81079263]
[1736381968221,2.5316,197.55,197.51,50.81079263]
[1736381968617,2.86,197.58,197.51,50.81079263]
[1736381968825,2.86,197.58,197.51,2.5321]
[1736381969622,2.88,197.57,197.51,2.5321]
[1736381970121,2.5316,197.56,197.51,2.5321]
[1736381971622,12.31846616,197.56,197.42,12.31846616]
[1736381971927,15.36746616,197.56,197.42,12.31846616]
[1736381972123,2.5321,197.51,197.42,12.31846616]
[1736381972324,2.88,197.5,197.42,12.31846616]
[1736381972524,5.4123,197.5,197.45,2.5328]
[1736381973519,5.4123,197.5,197.42,12.31846616]
[1736381973726,5.4123,197.5,197.46,2.5327]
[1736381973925,2.88,197.5,197.46,2.5327]
[1736381982939,1.5486,197.55,197.42,12.31846616]
[1736381983139,2.86,197.54,197.42,15.31806616]
[1736381983543,5.3917,197.54,197.48,2.5324]
[1736381984041,2.86,197.54,197.48,2.5324]
[1736381984340,2.5319,197.53,197.48,2.5324]
[1736381985039,2.5321,197.51,197.42,15.31806616]
[1736381986141,2.5321,197.51,197.46,2.5327]
[1736381986341,2.5321,197.51,197.42,15.31806616]
[1736381986940,2.5322,197.5,197.42,15.31806616]
[1736381987836,2.5322,197.5,197.45,2.5328]
[1736381988238,2.86,197.49,197.45,2.5328]
[1736381990743,2.86,197.49,197.46,2.5327]
[1736381993238,2.86,197.49,197.46,10.41141447]
[1736381999251,2.86,197.49,197.44,7.87871447]
[1736382000849,2.5326,197.47,197.44,7.87871447]
[1736382001047,7.87871447,197.46,197.35,194.1186]
[1736382001248,7.87871447,197.46,197.39,7.87871447]
[1736382001455,7.87871447,197.44,197.37,7.87871447]
[1736382001753,2.86,197.43,197.37,7.87871447]
[1736382002047,2.86,197.43,197.35,1.5194]
[1736382002048,2.5335,197.41,197.36,2.534]
[1736382002641,7.87871447,197.42,197.34,2.5342]
[1736382002843,7.87871447,197.4,197.34,7.87871447]
[1736382003250,2.5337,197.39,197.34,10.41301447]
[1736382003450,2.86,197.38,197.34,7.87871447]
[1736382004556,2.86,197.37,197.32,7.87871447]
[1736382005554,2.86,197.37,197.33,2.5343]
[1736382006352,2.86,197.37,197.34,2.5343]
[1736382006956,2.86,197.37,197.35,2.5341]
[1736382008159,2.86,197.37,197.34,10.41301447]
[1736382009458,2.86,197.37,197.34,2.5343]
[1736382009950,2.86,197.37,197.35,2.5341]
[1736382010452,2.86,197.37,197.34,2.5343]
[1736382012454,2.86,197.37,197.33,2.5344]
[1736382012955,7.87871447,197.34,197.28,1.5459]
[1736382013156,7.87871447,197.34,197.28,9.42461447]
[1736382014060,10.41301447,197.34,197.3,2.5348]
[1736382014260,7.87871447,197.34,197.28,9.42461447]
[1736382015866,10.41301447,197.34,197.3,2.5347]
[1736382016162,7.87871447,197.32,197.25,7.87871447]
[1736382016359,2.5348,197.3,197.26,2.5353]
[1736382017766,2.5348,197.3,197.24,2.5355]
[1736382017767,7.87871447,197.3,197.24,2.5355]
[1736382018062,7.87871447,197.28,197.24,2.5355]
[1736382018261,2.86,197.27,197.23,2.5357]
[1736382019057,2.86,197.27,197.22,7.87871447]
[1736382019258,2.86,197.27,197.24,2.5354]
[1736382019766,2.86,197.27,197.25,2.5354]
[1736382020266,2.86,197.27,197.22,7.87871447]
[1736382020767,2.86,197.27,197.25,2.5353]
[1736382021162,2.86,197.27,197.22,7.87871447]
[1736382021368,2.86,197.27,197.22,2.5358]
[1736382021870,5.3953,197.27,197.22,2.5358]
[1736382022764,2.5353,197.27,197.22,2.5358]
[1736382022964,13.27381447,197.28,197.24,2.5356]
[1736382023169,10.73871447,197.28,197.24,2.5356]
[1736382023364,2.86,197.28,197.22,7.87871447]
[1736382023974,2.86,197.28,197.23,2.5356]
[1736382024158,2.86,197.28,197.22,7.87871447]
[1736382024464,10.73871447,197.28,197.22,7.87871447]
[1736382024769,13.27381447,197.28,197.24,2.5356]
[1736382024967,7.87871447,197.26,197.2,7.87871447]
[1736382025271,10.41401447,197.26,197.22,2.5357]
[1736382025463,10.41401447,197.26,197.2,7.87871447]
[1736382026164,10.41401447,197.26,197.21,2.5359]
[1736382029369,10.41401447,197.26,197.2,7.87871447]
[1736382029574,7.87871447,197.26,197.23,2.5357]
[1736382030965,7.87871447,197.26,197.15,4.3129]
[1736382031166,7.87871447,197.24,197.16,7.87871447]
[1736382031571,2.5357,197.23,197.18,2.5362]
[1736382032172,10.41431447,197.24,197.19,2.5362]
[1736382032570,7.87871447,197.24,197.16,7.87871447]
[1736382032767,7.87871447,197.24,197.18,7.87871447]
[1736382032973,1.5341,197.35,197.23,7.87871447]
[1736382033169,7.87871447,197.31,197.23,7.87871447]
[1736382033368,10.41341447,197.31,197.27,2.5352]
[1736382033568,7.87871447,197.31,197.23,7.87871447]
[1736382033770,7.87871447,197.29,197.21,7.87871447]
[1736382034275,10.41361447,197.29,197.24,2.5355]
[1736382035772,7.87871447,197.27,197.24,2.5355]
[1736382036571,7.87871447,197.27,197.25,2.5353]
[1736382036874,10.73871447,197.29,197.21,7.87871447]
[1736382037775,10.73871447,197.29,197.26,2.5353]
[1736382038780,7.87871447,197.29,197.26,2.5353]
[1736382039170,7.87871447,197.27,197.21,7.87871447]
[1736382039573,7.87871447,197.27,197.19,2.86]
[1736382039574,7.87871447,197.27,197.19,10.73871447]
[1736382040077,10.41391447,197.27,197.23,2.5357]
[1736382041177,7.87871447,197.27,197.24,2.5356]
[1736382042480,7.87871447,197.29,197.26,2.5353]
[1736382043077,7.87871447,197.29,197.25,2.5354]
[1736382043780,10.41361447,197.29,197.25,2.5354]
[1736382043979,7.87871447,197.29,197.24,2.5356]
[1736382044388,7.87871447,197.27,197.24,2.5356]
[1736382044982,7.87871447,197.27,197.22,2.5357]
[1736382045182,7.87871447,197.25,197.17,7.87871447]
[1736382045477,10.73871447,197.25,197.17,7.87871447]
[1736382045682,7.87871447,197.23,197.18,2.5362]
[1736382046583,7.87871447,197.21,197.15,9.33161447]
[1736382046883,7.87871447,197.21,197.15,7.87871447]
[1736382047285,10.41471447,197.21,197.17,2.5365]
[1736382047483,7.87871447,197.23,197.15,7.87871447]
[1736382048678,10.41451447,197.23,197.18,2.5363]
[1736382050785,2.5359,197.22,197.18,2.5363]
[1736382050986,7.87871447,197.23,197.18,2.5363]
[1736382051281,10.41451447,197.23,197.18,2.5363]
[1736382051488,7.87871447,197.23,197.18,2.5363]
[1736382051789,7.87871447,197.21,197.14,50.90594239]
[1736382051988,2.5362,197.19,197.14,50.90594239]
[1736382053090,2.5362,197.19,197.14,61.32145686]
[1736382053284,2.5362,197.19,197.14,58.78465686]
[1736382054187,2.5362,197.19,197.15,2.5367]
[1736382055490,10.41491447,197.19,197.15,2.5367]
[1736382057092,2.5365,197.18,197.13,2.5369]
[1736382057294,7.87871447,197.17,197.11,7.87871447]
[1736382057789,7.87871447,197.17,197.13,2.5369]
[1736382057997,7.87871447,197.17,197.09,7.87871447]
[1736382058388,7.87871447,197.13,197.08,1.5798]
[1736382058593,10.41581447,197.13,197.06,7.87871447]
[1736382058992,10.41581447,197.13,197.08,2.5376]
[1736382059698,7.87871447,197.11,197.07,2.5377]
[1736382059995,7.87871447,197.11,197.03,9.42961447]
[1736382060294,7.87871447,197.11,197.09,2.5374]
[1736382060499,7.87871447,197.11,197.05,7.87871447]
[1736382060701,10.41611447,197.11,197.03,1.5509]
[1736382060901,10.41611447,197.11,197.06,2.5378]
[1736382061197,7.87871447,197.09,197.06,2.5378]
[1736382061398,10.73871447,197.09,197.04,2.538]
[1736382061591,7.87871447,197.07,196.99,3.0511]
[1736382061898,7.87871447,197.05,196.99,10.92981447]
[1736382062598,7.87871447,197.05,196.99,3.0511]
[1736382062991,2.86,197.04,197.01,2.5385]
[1736382065098,2.86,197.04,197.02,2.5384]
[1736382073709,7.87871447,197.05,197.02,2.5384]
[1736382073910,10.73871447,197.05,197.02,2.5384]
[1736382074212,2.86,197.05,196.99,10.92981447]
[1736382074808,2.86,197.05,197.04,2.5381]
[1736382075713,7.87871447,197.07,197.01,7.87871447]
[1736382076411,7.87871447,197.07,197.04,2.538]
[1736382076614,7.87871447,197.05,196.96,1.5436]
[1736382076802,7.87871447,197.03,196.97,7.87871447]
[1736382077007,7.87871447,197.03,196.99,2.5387]
[1736382077206,10.77871447,197.03,196.99,2.5387]
[1736382080012,10.77871447,197.03,197.0,2.5386]
[1736382080212,2.9,197.03,197.0,2.5386]
[1736382081410,2.9,197.03,196.97,7.87871447]
[1736382081606,2.9,197.03,197.02,2.5384]
[1736382082712,2.5379,197.06,196.96,1.5436]
[1736382082713,1.534,197.12,196.99,7.87871447]
[1736382082914,2.88,197.09,196.99,7.87871447]
[1736382083113,7.87871447,197.07,196.99,7.87871447]
[1736382083313,7.87871447,197.05,196.99,7.87871447]
[1736382083510,7.87871447,197.05,197.02,2.5383]
[1736382084811,7.87871447,197.05,196.99,7.87871447]
[1736382085017,7.87871447,197.05,197.01,2.5385]
[1736382085818,7.87871447,197.05,197.02,2.5384]
[1736382089116,2.538,197.06,197.02,2.5384]
[1736382089320,7.87871447,197.07,196.99,7.87871447]
[1736382089613,10.41651447,197.07,197.02,2.5383]
[1736382090317,7.87871447,197.07,197.02,2.5383]
[1736382090517,2.5379,197.06,197.02,2.5383]
[1736382090919,7.87871447,197.05,197.02,2.5383]
[1736382091415,7.87871447,197.05,196.99,7.87871447]
[1736382091622,7.87871447,197.03,196.96,1.5436]
[1736382091920,10.75871447,197.03,196.96,1.5436]
[1736382092219,13.29701447,197.03,196.98,2.5388]
[1736382092816,13.29701447,197.03,196.99,2.5388]
[1736382093419,2.5384,197.02,196.99,2.5388]
[1736382094618,7.87871447,197.01,196.99,2.5388]
[1736382099725,2.5388,196.99,196.95,2.5393]
[1736382099916,7.87871447,196.98,196.95,2.5393]
[1736382103026,10.73871447,196.98,196.95,2.5393]
[1736382104726,7.87871447,197.02,197.0,2.5387]
[1736382105327,3.1689,197.09,196.96,7.87871447]
[1736382105521,2.86,197.08,197.04,2.5381]
[1736382105725,7.87871447,197.07,197.04,2.5381]
[1736382106220,7.87871447,197.07,197.0,7.87871447]
[1736382106221,7.87871447,197.07,197.02,2.5383]
[1736382106723,7.87871447,197.05,197.02,2.5383]
[1736382109130,2.5382,197.04,196.99,2.5388]
[1736382109425,7.87871447,197.01,196.95,1.4602]
[1736382109828,7.87871447,197.01,196.97,2.5389]
[1736382110022,10.73871447,197.03,196.96,7.87871447]
[1736382110424,13.27701447,197.03,196.98,2.5388]
[1736382110921,13.27701447,197.03,196.96,7.87871447]
[1736382111127,13.27701447,197.03,196.99,2.5387]
[1736382111828,10.73871447,197.03,196.98,2.5389]
[1736382112129,7.87871447,197.01,196.98,2.5389]
[1736382112332,7.87871447,197.01,196.94,1.5257]
[1736382112625,7.87871447,196.97,196.9,16.43608877]
[1736382112831,7.87871447,196.97,196.9,9.38791447]
[1736382113032,7.87871447,196.95,196.88,107.7332322]
[1736382113531,7.87871447,196.93,196.88,79.54053498]
[1736382113734,10.73871447,196.93,196.88,79.54053498]
[1736382114231,7.87871447,196.91,196.87,2.5403]
[1736382114427,7.87871447,196.91,196.85,7.0481743]
[1736382114628,7.87871447,196.91,196.84,9.44701447]
[1736382114823,7.87871447,196.91,196.86,2.5403]
[1736382115128,2.86,196.93,196.88,7.87871447]
[1736382116222,2.5391,196.97,196.92,2.5396]
[1736382116427,7.87871447,196.96,196.88,10.75871447]
[1736382116624,7.87871447,196.96,196.89,1.5453]
[1736382116831,7.87871447,196.96,196.93,2.5394]
[1736382117031,7.87871447,196.96,196.9,7.87871447]
[1736382117531,7.87871447,196.96,196.89,1.5453]
[1736382117532,7.87871447,196.96,196.89,4.4253]
[1736382118128,7.87871447,196.96,196.93,2.5395]
[1736382118532,7.87871447,196.96,196.89,4.4253]
[1736382118735,7.87871447,196.96,196.94,2.5394]
[1736382119127,2.88,197.0,196.9,7.87871447]
[1736382119328,7.87871447,196.99,196.98,2.5389]
[1736382119733,2.88,197.05,196.94,10.75871447]
[1736382120034,7.87871447,197.02,197.0,2.5386]
[1736382120935,7.87871447,197.02,196.96,7.87871447]
[1736382121131,7.87871447,197.02,196.94,10.75871447]
[1736382122329,7.87871447,197.02,196.98,2.5389]
[1736382125037,7.87871447,197.02,196.99,2.5388]
[1736382126230,7.87871447,197.02,196.98,2.5389]
[1736382127438,7.87871447,197.0,196.98,2.5389]
[1736382128237,7.87871447,197.0,196.96,2.5391]
[1736382130939,2.88,197.05,196.94,2.88]
[1736382131136,7.87871447,197.02,196.95,7.87871447]
[1736382132137,7.87871447,197.02,196.99,2.5387]
[1736382132643,3.1535,197.09,197.02,2.5383]
[1736382132937,7.87871447,197.06,197.02,2.5383]
[1736382136142,10.41661447,197.06,197.02,2.5383]
[1736382136344,1.4978,197.1,197.04,2.5381]
[1736382136538,7.87871447,197.06,197.04,2.5381]
[1736382137244,7.87871447,197.06,196.99,10.73871447]
[1736382137444,7.87871447,197.06,197.03,2.5382]
[1736382140739,7.87871447,197.06,197.02,2.5384]
[1736382141443,2.5374,197.1,197.05,2.5379]
[1736382141641,10.41611447,197.1,197.04,2.86]
[1736382142045,10.41611447,197.1,197.05,2.538]
[1736382142852,2.5375,197.09,197.05,2.538]
[1736382144444,2.5377,197.08,197.04,2.86]
[1736382144748,7.87871447,197.08,197.0,7.87871447]
[1736382144945,2.86,197.1,197.0,7.87871447]
[1736382144946,2.5382,197.04,197.0,2.5385]
[1736382145145,7.87871447,197.02,196.98,1.4752]
[1736382145347,7.87871447,197.02,196.95,7.87871447]
[1736382145542,7.87871447,197.0,196.93,10.85451447]
[1736382145852,7.87871447,196.98,196.93,2.9758]
[1736382146051,2.5393,196.95,196.92,1.5054]
[1736382146251,7.87871447,196.96,196.88,29.66299722]
[1736382146452,7.87871447,196.94,196.88,29.66299722]
[1736382146656,10.41841447,196.92,196.88,1.4703]
[1736382146851,10.41841447,196.92,196.87,11.92451447]
[1736382147554,7.87871447,196.92,196.87,11.92451447]
[1736382148056,10.73871447,196.94,196.87,9.38421447]
[1736382149252,10.73871447,196.94,196.89,2.54]
[1736382150950,7.87871447,196.92,196.85,9.38411447]
[1736382151155,7.87871447,196.92,196.85,1.5054]
[1736382151350,7.87871447,196.9,196.84,7.87871447]
[1736382151554,7.87871447,196.88,196.81,198.0481743]
[1736382151749,7.87871447,196.88,196.81,7.0481743]
[1736382152254,10.41891447,196.88,196.82,2.5409]
[1736382152851,10.41891447,196.88,196.83,2.5408]
[1736382153055,7.87871447,196.88,196.83,2.5408]
[1736382153246,2.86,196.89,196.82,7.87871447]
[1736382153450,2.86,196.89,196.86,2.5403]
[1736382154550,2.86,196.91,196.82,12.38951512]
[1736382154750,2.86,196.91,196.82,15.24951512]
[1736382156156,2.86,196.91,196.9,2.5399]
[1736382159258,14.92891512,196.95,196.9,2.5399]
[1736382159460,2.86,196.94,196.9,2.5399]
[1736382161163,2.86,196.94,196.91,2.5398]
[1736382161960,12.38951512,196.95,196.91,2.5398]
[1736382162160,15.24951512,196.95,196.91,2.5398]
[1736382162562,15.24951512,196.95,196.82,206.24951512]
[1736382162868,15.24951512,196.95,196.92,2.5397]
[1736382163663,15.24951512,196.95,196.82,206.24951512]
[1736382163860,15.24951512,196.95,196.9,2.5398]
[1736382164062,15.24951512,196.95,196.82,206.24951512]
[1736382164564,15.24951512,196.95,196.91,2.5398]
[1736382164759,17.46441512,197.1,196.89,2.86]
[1736382164966,14.92821512,197.0,196.89,2.86]
[1736382165365,14.92821512,197.0,196.94,2.5393]
[1736382166366,12.38951512,197.0,196.94,2.5393]
[1736382166666,2.5388,196.99,196.94,2.5393]
[1736382168471,2.5388,196.99,196.93,2.5395]
[1736382169869,2.5388,196.99,196.94,2.5394]
[1736382170573,2.5389,196.98,196.94,2.5394]
[1736382171470,2.5389,196.98,196.93,2.5395]
[1736382172875,2.86,196.97,196.87,1.553]
[1736382173169,15.24951512,196.97,196.87,1.553]
[1736382173366,2.5396,196.93,196.87,1.553]
[1736382173569,15.24951512,196.97,196.87,1.553]
[1736382173768,15.24951512,196.97,196.86,2.9647]
[1736382174674,2.5398,196.92,196.86,2.9647]
[1736382175266,15.24951512,196.97,196.86,10.89068477]
[1736382175267,2.5398,196.91,196.86,10.89068477]
[1736382176077,2.54,196.9,196.86,10.89068477]
[1736382176268,2.86,196.92,196.82,192.4536]
[1736382176466,7.92598477,196.91,196.85,7.92598477]
[1736382176972,2.5403,196.88,196.85,7.92598477]
[1736382179071,2.5404,196.87,196.83,10.46678477]
[1736382180275,7.92598477,196.87,196.79,3.1013]
[1736382180480,7.92598477,196.85,196.79,1.5628]
[1736382180678,7.92598477,196.85,196.78,87.1141205]
[1736382180980,7.92598477,196.81,196.78,28.19269722]
[1736382181182,7.92598477,196.81,196.76,7.0481743]
[1736382181183,10.78598477,196.81,196.76,7.0481743]
[1736382181383,7.92598477,196.79,196.77,0.18445]
[1736382182480,13.32718477,196.81,196.77,0.18445]
[1736382184279,10.46738477,196.79,196.77,0.18445]
[1736382184883,2.5415,196.78,196.77,0.18445]
[1736382188176,2.5415,196.78,196.72,2.5423]
[1736382188384,7.92598477,196.76,196.73,2.5421]
[1736382188579,10.80598477,196.76,196.73,2.5421]
[1736382188884,10.80598477,196.76,196.7,7.92598477]
[1736382189184,10.80598477,196.76,196.67,4.5899]
[1736382189185,7.92598477,196.74,196.72,2.5423]
[1736382190378,7.92598477,196.74,196.7,2.5424]
[1736382191177,2.5419,196.75,196.7,2.5424]
[1736382191481,7.92598477,196.74,196.71,2.5424]
[1736382194889,7.92598477,196.74,196.7,2.5425]
[1736382196187,7.92598477,196.74,196.67,9.42268477]
[1736382196384,4.5366,196.8,196.69,7.92598477]
[1736382196579,7.92598477,196.76,196.69,7.92598477]
[1736382196785,7.92598477,196.76,196.74,2.542]
[1736382197288,7.92598477,196.76,196.67,1.4967]
[1736382197586,7.92598477,196.76,196.73,2.5421]
[1736382198190,7.92598477,196.76,196.72,2.5422]
[1736382198389,2.88,196.77,196.71,7.92598477]
[1736382198691,10.80598477,196.79,196.73,7.92598477]
[1736382198881,7.92598477,196.79,196.73,7.92598477]
[1736382199084,4.6798,196.9,196.73,7.92598477]
[1736382199281,7.92598477,196.82,196.79,2.5413]
[1736382199893,7.92598477,196.82,196.8,2.5412]
[1736382200886,7.92598477,196.82,196.68,2.88]
[1736382200887,7.92598477,196.84,196.77,7.92598477]
[1736382201396,7.92598477,196.84,196.8,2.5411]
[1736382201597,7.92598477,196.84,196.77,7.92598477]
[1736382201992,7.92598477,196.84,196.81,2.541]
[1736382204398,10.46648477,196.86,196.79,7.92598477]
[1736382204601,7.92598477,196.87,196.79,7.92598477]
[1736382204896,7.92598477,196.87,196.81,7.92598477]
[1736382207100,7.92598477,196.87,196.82,2.5409]
[1736382207397,7.92598477,196.87,196.81,7.92598477]
[1736382207603,7.92598477,196.87,196.84,2.5406]
[1736382207997,4.9138102,196.92,196.81,7.92598477]
[1736382208198,7.92598477,196.96,196.9,2.5398]
[1736382208398,2.9,196.98,196.89,7.92598477]
[1736382208594,2.5389,196.99,196.9,2.9]
[1736382208797,3.0029,197.02,196.95,2.5392]
[1736382209006,7.92598477,197.0,196.93,7.92598477]
[1736382209305,7.92598477,197.0,196.98,2.5389]
[1736382210201,7.92598477,197.02,196.98,2.5389]
[1736382210802,7.92598477,197.0,196.84,195.5943]
[1736382211004,7.92598477,197.0,196.93,7.92598477]
[1736382211302,12.37677518,197.02,196.93,2.9]
[1736382211506,2.5387,197.0,196.93,5.4394]
[1736382211704,2.5387,197.0,196.93,2.9]
[1736382211906,14.91517518,197.02,196.96,2.5391]
[1736382212807,2.5384,197.02,196.96,2.5391]
[1736382213005,2.5384,197.03,196.96,2.5391]
[1736382213206,15.27677518,197.05,196.96,2.5391]
[1736382213607,2.5388,197.0,196.94,2.5394]
[1736382215710,2.88,196.99,196.89,12.37677518]
[1736382215912,15.25677518,196.99,196.89,12.37677518]
[1736382216917,15.25677518,196.99,196.86,12.37677518]
[1736382217212,2.5392,196.96,196.9,2.5399]
[1736382217415,15.25677518,196.99,196.86,12.37677518]
[1736382217812,15.25677518,196.99,196.91,2.5398]
[1736382217813,2.5391,196.97,196.91,2.5398]
[1736382219716,2.88,196.96,196.92,2.5397]
[1736382221210,2.88,196.96,196.86,12.37677518]
[1736382221413,2.88,196.96,196.91,2.5398]
[1736382225122,2.88,196.96,196.92,2.5397]
[1736382225919,2.88,196.96,196.89,12.37677518]
[1736382226417,2.88,196.96,196.95,2.5392]
[1736382228019,2.5387,197.0,196.95,2.5392]
[1736382228216,2.88,196.98,196.95,2.5392]
[1736382231730,2.88,196.99,196.95,2.5392]
[1736382232328,2.88,196.99,196.96,2.5391]
[1736382232523,10.45953123,197.0,196.96,2.5391]
[1736382232725,2.88,196.99,196.95,7.92083123]
[1736382232929,3.1041,197.06,196.97,7.92083123]
[1736382233229,7.92083123,197.05,196.99,7.92083123]
[1736382233419,7.92083123,197.07,197.04,2.538]
[1736382233624,7.92083123,197.07,197.01,7.92083123]
[1736382234022,7.92083123,197.07,197.04,2.5381]
[1736382234623,7.92083123,197.07,197.05,2.538]
[1736382234831,7.92083123,197.09,197.05,2.538]
[1736382235029,7.92083123,197.09,197.06,2.88]
[1736382236435,2.5374,197.1,197.06,2.88]
[1736382236733,10.45823123,197.1,197.06,2.88]
[1736382239725,2.5375,197.09,197.06,2.88]
[1736382242030,2.5375,197.09,197.04,2.5381]
[1736382242231,2.5375,197.09,197.04,5.4181]
[1736382242933,2.5375,197.09,197.04,2.88]
[1736382243133,2.5375,197.09,197.05,2.538]
[1736382245434,2.5371,197.12,197.07,2.5377]
[1736382249148,2.5372,197.11,197.07,2.5377]
[1736382249539,10.45803123,197.11,197.07,2.5377]
[1736382252343,5.4171,197.12,197.07,2.5377]
[1736382254843,2.5373,197.11,197.07,2.5377]
[1736382257835,2.5374,197.1,197.06,2.5378]
[1736382260245,2.5379,197.06,197.02,2.5383]
[1736382261044,2.538,197.05,197.02,2.5383]
[1736382262545,2.538,197.05,197.01,2.5385]
[1736382263052,2.5383,197.03,196.99,10.45963123]
[1736382265549,7.92083123,197.01,196.95,9.52633123]
[1736382265852,10.78083123,197.01,196.93,14.94727288]
[1736382266055,2.5388,196.99,196.94,2.5394]
[1736382266353,10.78083123,197.01,196.93,14.94727288]
[1736382266653,13.31943123,197.01,196.96,2.5391]
[1736382267350,10.78083123,197.01,196.96,2.5391]
[1736382268451,13.31943123,197.01,196.94,7.92083123]
[1736382268656,13.31943123,197.01,196.95,2.5393]
[1736382269158,13.31943123,197.01,196.94,7.92083123]
[1736382270054,13.31943123,197.01,196.96,2.5392]
[1736382270561,2.5388,196.99,196.89,4.5713]
[1736382270758,7.92083123,196.99,196.91,7.92083123]
[1736382270950,7.92083123,196.97,196.89,12.49213123]
[1736382271151,2.86,196.96,196.89,12.49213123]
[1736382271357,2.86,196.96,196.91,2.5397]
[1736382273050,2.86,196.96,196.92,2.5397]
[1736382273759,5.3992,196.96,196.91,2.5398]
[1736382274458,10.46013123,196.95,196.9,2.5399]
[1736382274663,7.92083123,196.95,196.87,7.92083123]
[1736382275157,2.5394,196.94,196.87,7.92083123]
[1736382275564,2.86,196.96,196.89,7.92083123]
[1736382275957,2.86,196.96,196.91,2.5398]
[1736382276156,2.86,196.95,196.91,2.5398]